fUST/lending_fUST_20240804
["ID","MTS","AMOUNT","RATE_DAILY","PERIOD"]
[334114350,1722783047184,-82.46556733,0.00013688,2]
[334114353,1722783047194,-353.55701276,0.00013698,2]
[334114355,1722783047203,-151.0,0.00013698,2]
[334114357,1722783047215,-151.0,0.00013698,2]
[334114359,1722783047227,-151.0,0.00013698,2]
[334114361,1722783047238,-151.0,0.00013698,2]
[334114364,1722783047249,-151.0,0.00013698,2]
[334114367,1722783047259,-247.07741991,0.00013698,2]
[334114370,1722783047271,-252.92258009,0.00013698,2]
[334114372,1722783047281,-173.10735,0.00013698,2]
[334114374,1722783047290,-500.0,0.00013698,2]
[334114376,1722783047299,-504.72960736,0.00013698,2]
[334114377,1722783047309,-151.0,0.00013698,2]
[334114378,1722783047318,-500.0,0.00013698,2]
[334114379,1722783047328,-500.0,0.00013698,2]
[334114380,1722783047338,-151.0,0.00013698,2]
[334114381,1722783047348,-500.0,0.00013698,2]
[334114382,1722783047358,-500.0,0.00013698,2]
[334114383,1722783047368,-500.0,0.00013698,2]
[334114384,1722783047377,-500.0,0.00013698,2]
[334114385,1722783047386,-500.0,0.00013698,2]
[334114386,1722783047396,-500.0,0.00013698,2]
[334114387,1722783047409,-500.0,0.00013698,2]
[334114388,1722783047419,-500.0,0.00013698,2]
[334114389,1722783047428,-500.0,0.00013698,2]
[334114391,1722783047438,-932.697793,0.00013698,2]
[334114393,1722783047448,-932.697793,0.00013698,2]
[334114395,1722783047459,-932.697793,0.00013698,2]
[334114397,1722783047469,-932.697793,0.00013698,2]
[334114399,1722783047480,-932.697793,0.00013698,2]
[334114401,1722783047490,-932.697793,0.00013698,2]
[334114403,1722783047500,-932.697793,0.00013698,2]
[334114404,1722783047510,-500.0,0.00013698,2]
[334114405,1722783047519,-505.53425985,0.00013698,2]
[334114406,1722783047529,-932.697793,0.00013698,2]
[334114407,1722783047539,-932.697793,0.00013698,2]
[334114408,1722783047548,-932.697793,0.00013698,2]
[334114409,1722783047558,-932.697793,0.00013698,2]
[334114410,1722783047568,-932.697793,0.00013698,2]
[334114411,1722783047577,-932.697793,0.00013698,2]
[334114412,1722783047587,-932.697793,0.00013698,2]
[334114413,1722783047598,-500.0,0.00013698,2]
[334114414,1722783047608,-500.0,0.00013698,2]
[334114415,1722783047618,-500.0,0.00013698,2]
[334114417,1722783047628,-500.0,0.00013698,2]
[334114419,1722783047639,-500.0,0.00013698,2]
[334114421,1722783047650,-508.44466777,0.00013698,2]
[334114422,1722783047666,-500.0,0.00013698,2]
[334114424,1722783047676,-523.25548028,0.00013698,2]
[334114426,1722783047686,-647.55605812,0.00013698,2]
[334114428,1722783047697,-500.0,0.00013698,2]
[334114430,1722783047707,-500.0,0.00013698,2]
[334114432,1722783047717,-500.0,0.00013698,2]
[334114434,1722783047727,-379.82178042,0.00013698,2]
[334114435,1722783047736,-500.0,0.00013698,2]
[334114437,1722783047746,-500.0,0.00013698,2]
[334114438,1722783047756,-500.0,0.00013698,2]
[334114439,1722783047765,-500.0,0.00013698,2]
[334114440,1722783047775,-500.0,0.00013698,2]
[334114441,1722783047784,-500.0,0.00013698,2]
[334114442,1722783047793,-500.0,0.00013698,2]
[334114443,1722783047803,-151.0,0.00013698,2]
[334114444,1722783047812,-1013.91,0.00013698,2]
[334114446,1722783047822,-151.0,0.00013698,2]
[334114448,1722783047831,-567.3,0.00013698,2]
[334114450,1722783047841,-453.04267262,0.00013698,2]
[334114452,1722783047851,-500.0,0.00013698,2]
[334114454,1722783047861,-500.0,0.00013698,2]
[334114456,1722783047870,-544.53,0.00013698,2]
[334114458,1722783047880,-500.0,0.00013698,2]
[334114460,1722783047889,-500.0,0.00013698,2]
[334114462,1722783047898,-521.13162345,0.00013698,2]
[334114464,1722783047910,-500.0,0.00013698,2]
[334114465,1722783047919,-500.0,0.00013698,2]
[334114467,1722783047929,-240.547642,0.00013698,2]
[334114469,1722783047938,-240.547642,0.00013698,2]
[334114472,1722783047948,-240.547642,0.00013698,2]
[334114474,1722783047958,-240.547642,0.00013698,2]
[334114476,1722783047969,-500.0,0.00013698,2]
[334114478,1722783047978,-240.547642,0.00013698,2]
[334114480,1722783047988,-500.0,0.00013698,2]
[334114482,1722783047997,-240.547642,0.00013698,2]
[334114484,1722783048006,-500.0,0.00013698,2]
[334114486,1722783048016,-240.547642,0.00013698,2]
[334114488,1722783048025,-240.547642,0.00013698,2]
[334114490,1722783048035,-1575.58,0.00013698,2]
[334114492,1722783048046,-240.547642,0.00013698,2]
[334114494,1722783048059,-500.0,0.00013698,2]
[334114496,1722783048069,-240.547642,0.00013698,2]
[334114498,1722783048078,-240.547642,0.00013698,2]
[334114500,1722783048088,-240.547642,0.00013698,2]
[334114502,1722783048098,-240.547642,0.00013698,2]
[334114504,1722783048107,-240.547642,0.00013698,2]
[334114506,1722783048117,-240.547642,0.00013698,2]
[334114508,1722783048127,-450.34144717,0.00013698,2]
[334114510,1722783048137,-240.547642,0.00013698,2]
[334114512,1722783048146,-500.0,0.00013698,2]
[334114514,1722783048158,-500.0,0.00013698,2]
[334114516,1722783048169,-840.93,0.00013698,2]
[334114518,1722783048178,-500.0,0.00013698,2]
[334114520,1722783048187,-500.0,0.00013698,2]
[334114522,1722783048197,-500.0,0.00013698,2]
[334114523,1722783048206,-265.477233,0.00013698,2]
[334114524,1722783048215,-500.0,0.00013698,2]
[334114525,1722783048225,-500.0,0.00013698,2]
[334114526,1722783048234,-500.0,0.00013698,2]
[334114527,1722783048244,-500.0,0.00013698,2]
[334114528,1722783048253,-500.0,0.00013698,2]
[334114529,1722783048262,-996.39,0.00013698,2]
[334114530,1722783048271,-500.0,0.00013698,2]
[334114531,1722783048280,-500.0,0.00013698,2]
[334114532,1722783048289,-500.0,0.00013698,2]
[334114533,1722783048299,-500.0,0.00013698,2]
[334114534,1722783048308,-500.0,0.00013698,2]
[334114535,1722783048318,-500.0,0.00013698,2]
[334114536,1722783048327,-1105.84,0.00013698,2]
[334114537,1722783048336,-500.0,0.00013698,2]
[334114538,1722783048345,-500.0,0.00013698,2]
[334114539,1722783048355,-504.0936475,0.00013698,2]
[334114540,1722783048364,-500.0,0.00013698,2]
[334114541,1722783048374,-217.50767232,0.00013698,2]
[334114542,1722783048383,-1493.51,0.00013698,2]
[334114543,1722783048393,-500.0,0.00013698,2]
[334114544,1722783048406,-500.0,0.00013698,2]
[334114545,1722783048416,-500.0,0.00013698,2]
[334114546,1722783048425,-689.13,0.00013698,2]
[334114547,1722783048435,-500.0,0.00013698,2]
[334114548,1722783048446,-522.62450621,0.00013698,2]
[334114549,1722783048456,-500.0,0.00013698,2]
[334114550,1722783048466,-500.0,0.00013698,2]
[334114551,1722783048476,-500.0,0.00013698,2]
[334114552,1722783048486,-500.0,0.00013698,2]
[334114553,1722783048496,-3343.38,0.00013698,2]
[334114554,1722783048505,-500.0,0.00013698,2]
[334114555,1722783048514,-500.0,0.00013698,2]
[334114556,1722783048524,-1344.01,0.00013698,2]
[334114557,1722783048535,-500.0,0.00013698,2]
[334114558,1722783048546,-500.0,0.00013698,2]
[334114559,1722783048556,-500.0,0.00013698,2]
[334114560,1722783048566,-2581.53,0.00013698,2]
[334114561,1722783048576,-500.0,0.00013698,2]
[334114562,1722783048586,-500.0,0.00013698,2]
[334114563,1722783048596,-500.0,0.00013698,2]
[334114564,1722783048606,-500.0,0.00013698,2]
[334114565,1722783048616,-151.0,0.00013698,2]
[334114566,1722783048627,-500.0,0.00013698,2]
[334114567,1722783048639,-500.0,0.00013698,2]
[334114568,1722783048649,-500.0,0.00013698,2]
[334114569,1722783048662,-500.0,0.00013698,2]
[334114570,1722783048672,-500.0,0.00013698,2]
[334114571,1722783048681,-630.27,0.00013698,2]
[334114572,1722783048690,-500.0,0.00013698,2]
[334114573,1722783048700,-500.0,0.00013698,2]
[334114574,1722783048714,-500.0,0.00013698,2]
[334114575,1722783048724,-500.0,0.00013698,2]
[334114576,1722783048733,-500.0,0.00013698,2]
[334114577,1722783048743,-213.146096,0.00013698,2]
[334114578,1722783048753,-500.0,0.00013698,2]
[334114579,1722783048762,-500.0,0.00013698,2]
[334114580,1722783048771,-500.0,0.00013698,2]
[334114581,1722783048780,-500.0,0.00013698,2]
[334114582,1722783048789,-500.0,0.00013698,2]
[334114583,1722783048798,-213.146096,0.00013698,2]
[334114584,1722783048808,-500.0,0.00013698,2]
[334114585,1722783048817,-2853.7,0.00013698,2]
[334114586,1722783048827,-583.75,0.00013698,2]
[334114587,1722783048836,-500.0,0.00013698,2]
[334114588,1722783048845,-500.0,0.00013698,2]
[334114589,1722783048858,-500.0,0.00013698,2]
[334114590,1722783048867,-154.034027,0.00013698,2]
[334114591,1722783048877,-1384.58,0.00013698,2]
[334114592,1722783048886,-970.24,0.00013698,2]
[334114593,1722783048895,-154.034027,0.00013698,2]
[334114594,1722783048908,-500.0,0.00013698,2]
[334114595,1722783048917,-151.0,0.00013699,2]
[334114596,1722783048927,-151.0,0.00013699,2]
[334114597,1722783048936,-2535.0065056,0.00013699,2]
[334114598,1722783048945,-286.500631,0.00013699,2]
[334114599,1722783048955,-500.0,0.00013699,2]
[334114600,1722783048964,-151.0,0.00013699,2]
[334114601,1722783048974,-150.112233,0.000137,2]
[334114602,1722783048983,-2459.90445528,0.00013735,2]
[334114603,1722783048993,-151.0,0.0001387,2]
[334114604,1722783049003,-176.01189641,0.00013871,2]
[334114605,1722783049013,-500.0,0.00013871,2]
[334114606,1722783049023,-500.0,0.00013871,2]
[334114607,1722783049033,-320.93304208,0.00013871,2]
[334114608,1722783049046,-240.547642,0.00013871,2]
[334114609,1722783049057,-240.547642,0.00013871,2]
[334114610,1722783049067,-2459.90445528,0.00013872,2]
[334114611,1722783049077,-151.0,0.00013872,2]
[334114612,1722783049088,-1507.24815579,0.00013872,2]
[334114613,1722783049098,-150.112233,0.000139,2]
[334114614,1722783049108,-22638.7385128,0.00013951,2]
[334114615,1722783049117,-151.0,0.00013951,2]
[334114616,1722783049128,-151.0,0.00013951,2]
[334114617,1722783049139,-500.0,0.00013951,2]
[334114618,1722783049148,-213.146096,0.00013951,2]
[334114619,1722783049159,-213.146096,0.00013951,2]
[334114620,1722783049168,-154.034027,0.00013951,2]
[334114621,1722783049177,-154.034027,0.00013951,2]
[334114622,1722783049187,-151.0,0.00013952,2]
[334114623,1722783049197,-151.0,0.00013952,2]
[334114624,1722783049207,-964.807555,0.00013952,2]
[334114625,1722783049217,-964.807555,0.00013952,2]
[334114626,1722783049227,-151.0,0.00013952,2]
[334114627,1722783049237,-932.697793,0.00013952,2]
[334114628,1722783049247,-932.697793,0.00013952,2]
[334114629,1722783049257,-22638.7385128,0.00013952,2]
[334114630,1722783049268,-22638.7385128,0.00013961,2]
[334114631,1722783049277,-151.0,0.00013961,2]
[334114632,1722783049288,-932.697793,0.00013961,2]
[334114633,1722783049298,-932.697793,0.00013961,2]
[334114634,1722783049308,-240.547642,0.00013961,2]
[334114635,1722783049318,-3766.57,0.00013961,2]
[334114636,1722783049328,-10.86832249,0.00013961,2]
[334114637,1722783051821,-229.67932151,0.00013961,2]
[334114638,1722783051832,-299.531398,0.00013961,2]
[334114639,1722783051843,-299.531398,0.00013961,2]
[334114640,1722783051853,-189.434948,0.00013961,2]
[334114641,1722783051862,-151.0,0.00013961,2]
[334114642,1722783051872,-189.434948,0.00013961,2]
[334114643,1722783051882,-151.0,0.00013961,2]
[334114644,1722783051892,-151.0,0.00013961,2]
[334114645,1722783051904,-151.0,0.00013961,2]
[334114646,1722783051914,-500.0,0.00013961,2]
[334114647,1722783051923,-213.146096,0.00013961,2]
[334114648,1722783051932,-213.146096,0.00013961,2]
[334114649,1722783051941,-154.034027,0.00013961,2]
[334114650,1722783051950,-154.034027,0.00013961,2]
[334114651,1722783051962,-151.0,0.00013962,2]
[334114652,1722783051972,-151.0,0.00013962,2]
[334114653,1722783051983,-151.0,0.00013962,2]
[334114654,1722783051993,-964.807555,0.00013962,2]
[334114655,1722783052004,-964.807555,0.00013962,2]
[334114656,1722783052015,-185.448728,0.00013962,2]
[334114657,1722783052024,-932.697793,0.00013962,2]
[334114658,1722783052034,-932.697791,0.00013962,2]
[334114659,1722783052045,-299.531398,0.00013962,2]
[334114660,1722783052057,-299.531398,0.00013962,2]
[334114661,1722783052067,-189.434948,0.00013962,2]
[334114662,1722783052079,-151.0,0.00013962,2]
[334114663,1722783052089,-189.434948,0.00013962,2]
[334114664,1722783052101,-151.0,0.00013962,2]
[334114665,1722783052113,-151.0,0.00013962,2]
[334114666,1722783052124,-151.0,0.00013962,2]
[334114667,1722783052134,-213.146096,0.00013962,2]
[334114668,1722783052145,-213.146096,0.00013962,2]
[334114669,1722783052158,-154.034027,0.00013962,2]
[334114670,1722783052168,-154.034027,0.00013962,2]
[334114671,1722783052179,-16474.7438503,0.00013962,2]
[334114672,1722783052414,152.4,0.00010959,2]
[334114673,1722783062501,762.03,0.00010959,2]
[334114676,1722783677899,1161.47993921,0.00025,60]
[334114684,1722784030135,-197.83636867,9.998e-05,2]
[334114685,1722784033116,-102.16363133,9.998e-05,2]
[334114686,1722784033142,-300.0,9.998e-05,2]
[334114687,1722784033164,-209.85118264,9.999e-05,2]
[334114688,1722784033186,-154.71941749,9.999e-05,2]
[334114689,1722784033348,-533.78606257,9.999e-05,2]
[334114690,1722784033370,-154.71377951,9.999e-05,2]
[334114691,1722784033396,-531.94294972,9.999e-05,2]
[334114692,1722784033419,-81.12793974,9.999e-05,2]
[334114693,1722784039125,-175.51500821,9.999e-05,2]
[334114694,1722784039148,-628.03771352,9.999e-05,2]
[334114695,1722784039170,-309.3349299,9.999e-05,2]
[334114696,1722784039192,-391.12294837,9.999e-05,2]
[334114697,1722784039214,-165.52155498,9.999e-05,2]
[334114698,1722784039236,-320.1034436,9.999e-05,2]
[334114699,1722784039258,-371.88819902,0.0001,2]
[334114700,1722784039280,-309.39667648,0.0001,2]
[334114701,1722784039302,-300.0,0.00010998,2]
[334114702,1722784039325,-21647.6731438,0.00011573,2]
[334114703,1722784039349,-171.035033,0.00011635,2]
[334114704,1722784039390,-203.5382975,0.00011753,2]
[334114705,1722784039420,-2231.4870139,0.00011826,2]
[334114706,1722784039444,-1882.61113844,0.00013475,2]
[334114707,1722784040141,-218.59174078,0.00010959,2]
[334114713,1722784151264,-520.34825922,0.00010959,2]
[334114714,1722784151288,-4345.00861164,0.00010959,2]
[334114715,1722784151310,-1880.67694903,0.00010959,2]
[334114716,1722784151332,-1000.0,0.000135,2]
[334114717,1722784151354,-101.79998191,0.00013577,2]
[334114754,1722784234061,-561.46296804,0.00013283,2]
[334114757,1722784234074,-1319.21398099,0.00013283,2]
[334114758,1722784234083,-350.16230292,0.00013585,2]
[334114760,1722784234093,-1124.24611483,0.00013598,2]
[334114763,1722784234104,-200.0,0.00013673,2]
[334114765,1722784234114,-12559.55540126,0.00013688,2]
[334114767,1722784234125,-6431.13805547,0.00013688,2]
[334114787,1722784234338,-229.81166256,0.00013688,2]
[334115264,1722784239170,-320.74332021,0.00013688,2]
[334115285,1722784239380,-16605.03698194,0.00013688,2]
[334115408,1722784240570,-1542.09918251,0.00013688,2]
[334115410,1722784240581,-489.10335803,0.00013688,2]
[334115412,1722784240593,-1943.0977592,0.00013688,2]
[334115432,1722784240842,-2258.55857112,0.00013688,2]
[334115434,1722784240851,-3295.74,0.00013697,2]
[334115436,1722784240861,-222.54354676,0.00013698,2]
[334115438,1722784240871,-500.0,0.00013698,2]
[334115440,1722784240881,-500.0,0.00013698,2]
[334115442,1722784240891,-30.50716148,0.00013698,2]
[334115778,1722784243800,-289.828385,0.00013698,2]
[334115781,1722784243809,-500.0,0.00013698,2]
[334115784,1722784243819,-500.0,0.00013698,2]
[334115785,1722784243828,-500.0,0.00013698,2]
[334115788,1722784243837,-500.0,0.00013698,2]
[334115791,1722784243847,-500.0,0.00013698,2]
[334115794,1722784243856,-500.0,0.00013698,2]
[334115798,1722784243865,-500.0,0.00013698,2]
[334115801,1722784243875,-500.0,0.00013698,2]
[334115804,1722784243885,-509.97900109,0.00013698,2]
[334115807,1722784243894,-510.41407749,0.00013698,2]
[334115810,1722784243903,-500.0,0.00013698,2]
[334115813,1722784243912,-500.0,0.00013698,2]
[334115816,1722784243922,-501.7600935,0.00013698,2]
[334115819,1722784243932,-500.0,0.00013698,2]
[334115821,1722784243943,-500.0,0.00013698,2]
[334115824,1722784243954,-500.0,0.00013698,2]
[334115826,1722784243963,-500.02842443,0.00013698,2]
[334115828,1722784243974,-257.39179725,0.00013698,2]
[334115830,1722784243985,-500.0,0.00013698,2]
[334115832,1722784243995,-273.17894821,0.00013698,2]
[334115833,1722784244006,-534.78977663,0.00013698,2]
[334115835,1722784244015,-500.0,0.00013698,2]
[334115837,1722784244024,-500.0,0.00013698,2]
[334115839,1722784244034,-806.74,0.00013698,2]
[334115841,1722784244043,-500.0,0.00013698,2]
[334115843,1722784244053,-703.19,0.00013698,2]
[334115845,1722784244063,-331.9122577,0.00013698,2]
[334115847,1722784244073,-500.0,0.00013698,2]
[334115849,1722784244082,-500.0,0.00013698,2]
[334115851,1722784244092,-500.0,0.00013698,2]
[334115853,1722784244101,-508.06675863,0.00013698,2]
[334115855,1722784244110,-500.0,0.00013698,2]
[334115857,1722784244119,-500.0,0.00013698,2]
[334115859,1722784244129,-500.0,0.00013698,2]
[334115861,1722784244139,-500.0,0.00013698,2]
[334115863,1722784244149,-500.0,0.00013698,2]
[334115865,1722784244158,-500.0,0.00013698,2]
[334115867,1722784244168,-500.0,0.00013698,2]
[334115869,1722784244177,-532.6218343,0.00013698,2]
[334115871,1722784244187,-455.35880274,0.00013698,2]
[334115873,1722784244197,-500.0,0.00013698,2]
[334115875,1722784244209,-500.0,0.00013698,2]
[334115877,1722784244220,-504.30618245,0.00013698,2]
[334115879,1722784244234,-500.0,0.00013698,2]
[334115881,1722784244243,-500.0,0.00013698,2]
[334115883,1722784244253,-500.0,0.00013698,2]
[334115885,1722784244266,-543.59444247,0.00013698,2]
[334115887,1722784244277,-500.0,0.00013698,2]
[334115889,1722784244287,-500.0,0.00013698,2]
[334115891,1722784244297,-500.0,0.00013698,2]
[334115893,1722784244307,-500.0,0.00013698,2]
[334115895,1722784244316,-424.65312945,0.00013698,2]
[334115897,1722784244325,-500.0,0.00013698,2]
[334115899,1722784244336,-500.0,0.00013698,2]
[334115901,1722784244346,-500.0,0.00013698,2]
[334115903,1722784244356,-500.0,0.00013698,2]
[334115905,1722784244365,-500.0,0.00013698,2]
[334115907,1722784244375,-500.0,0.00013698,2]
[334115909,1722784244384,-500.0,0.00013698,2]
[334115911,1722784244395,-500.0,0.00013698,2]
[334115913,1722784244404,-500.0,0.00013698,2]
[334115915,1722784244415,-500.0,0.00013698,2]
[334115917,1722784244427,-500.0,0.00013698,2]
[334115919,1722784244438,-500.0,0.00013698,2]
[334115921,1722784244451,-500.0,0.00013698,2]
[334115923,1722784244462,-500.0,0.00013698,2]
[334115925,1722784244474,-500.0,0.00013698,2]
[334115927,1722784244486,-500.0,0.00013698,2]
[334115929,1722784244496,-500.0,0.00013698,2]
[334115931,1722784244510,-500.0,0.00013698,2]
[334115933,1722784244522,-500.0,0.00013698,2]
[334115935,1722784244533,-500.0,0.00013698,2]
[334115937,1722784244542,-539.04334792,0.00013698,2]
[334115939,1722784244552,-500.0,0.00013698,2]
[334115941,1722784244562,-500.0,0.00013698,2]
[334115943,1722784244572,-500.0,0.00013698,2]
[334115946,1722784244582,-513.97612412,0.00013698,2]
[334115948,1722784244593,-500.0,0.00013698,2]
[334115950,1722784244602,-500.0,0.00013698,2]
[334115952,1722784244612,-500.0,0.00013698,2]
[334115953,1722784244622,-500.0,0.00013698,2]
[334115956,1722784244634,-500.0,0.00013698,2]
[334115958,1722784244646,-500.0,0.00013698,2]
[334115960,1722784244657,-219.94281907,0.00013698,2]
[334115962,1722784244666,-500.0,0.00013698,2]
[334115964,1722784244675,-500.0,0.00013698,2]
[334115966,1722784244687,-500.0,0.00013698,2]
[334115968,1722784244697,-500.0,0.00013698,2]
[334115970,1722784244707,-500.0,0.00013698,2]
[334115972,1722784244716,-500.0,0.00013698,2]
[334115974,1722784244725,-555.05,0.00013698,2]
[334115976,1722784244735,-500.0,0.00013698,2]
[334115978,1722784244745,-500.0,0.00013698,2]
[334115980,1722784244756,-500.0,0.00013698,2]
[334115982,1722784244769,-500.0,0.00013698,2]
[334115984,1722784244784,-500.0,0.00013698,2]
[334115986,1722784244794,-498.9707336,0.00013698,2]
[334115988,1722784244803,-500.0,0.00013698,2]
[334115990,1722784244813,-500.0,0.00013698,2]
[334115992,1722784244823,-500.0,0.00013698,2]
[334115993,1722784244832,-500.0,0.00013698,2]
[334115995,1722784244842,-500.0,0.00013698,2]
[334115997,1722784244852,-500.0,0.00013698,2]
[334115999,1722784244862,-500.0,0.00013698,2]
[334116001,1722784244873,-500.0,0.00013698,2]
[334116003,1722784244883,-500.0,0.00013698,2]
[334116005,1722784244892,-500.0,0.00013698,2]
[334116007,1722784244903,-500.0,0.00013698,2]
[334116009,1722784244913,-500.0,0.00013698,2]
[334116011,1722784244923,-500.0,0.00013698,2]
[334116012,1722784244933,-500.0,0.00013698,2]
[334116013,1722784244943,-500.0,0.00013698,2]
[334116014,1722784244953,-281.82390913,0.00013698,2]
[334116015,1722784244963,-500.0,0.00013698,2]
[334116016,1722784244973,-500.0,0.00013698,2]
[334116017,1722784244982,-500.0,0.00013698,2]
[334116018,1722784244992,-500.0,0.00013698,2]
[334116019,1722784245002,-291.92096558,0.00013698,2]
[334116020,1722784245017,-500.0,0.00013698,2]
[334116021,1722784245028,-500.0,0.00013698,2]
[334116022,1722784245038,-500.0,0.00013698,2]
[334116023,1722784245048,-226.31575498,0.00013698,2]
[334116024,1722784245057,-500.0,0.00013698,2]
[334116025,1722784245067,-504.02017727,0.00013698,2]
[334116026,1722784245078,-500.0,0.00013698,2]
[334116027,1722784245089,-500.0,0.00013698,2]
[334116028,1722784245099,-500.0,0.00013698,2]
[334116029,1722784245108,-500.0,0.00013698,2]
[334116030,1722784245118,-500.0,0.00013698,2]
[334116031,1722784245127,-543.66,0.00013698,2]
[334116033,1722784245137,-522.08739497,0.00013698,2]
[334116035,1722784245147,-500.0,0.00013698,2]
[334116037,1722784245157,-500.0,0.00013698,2]
[334116039,1722784245167,-500.0,0.00013698,2]
[334116041,1722784245177,-267.628151,0.00013698,2]
[334116043,1722784245187,-500.0,0.00013698,2]
[334116045,1722784245197,-504.92247799,0.00013698,2]
[334116047,1722784245207,-500.0,0.00013698,2]
[334116049,1722784245216,-531.08638855,0.00013698,2]
[334116051,1722784245227,-929.82,0.00013698,2]
[334116053,1722784245238,-500.0,0.00013698,2]
[334116055,1722784245248,-1326.89,0.00013698,2]
[334116057,1722784245260,-500.0,0.00013698,2]
[334116059,1722784245270,-504.84,0.00013698,2]
[334116061,1722784245279,-500.0,0.00013698,2]
[334116063,1722784245289,-500.0,0.00013698,2]
[334116065,1722784245299,-500.0,0.00013698,2]
[334116067,1722784245309,-500.0,0.00013698,2]
[334116069,1722784245318,-500.0,0.00013698,2]
[334116071,1722784245328,-500.0,0.00013698,2]
[334116073,1722784245338,-500.0,0.00013698,2]
[334116075,1722784245348,-500.0,0.00013698,2]
[334116077,1722784245358,-500.0,0.00013698,2]
[334116079,1722784245368,-500.0,0.00013698,2]
[334116081,1722784245377,-500.0,0.00013698,2]
[334116083,1722784245387,-500.0,0.00013698,2]
[334116085,1722784245396,-500.0,0.00013698,2]
[334116087,1722784245407,-521.84,0.00013698,2]
[334116089,1722784245416,-500.0,0.00013698,2]
[334116091,1722784245428,-1000.79,0.00013698,2]
[334116093,1722784245440,-500.0,0.00013698,2]
[334116095,1722784245451,-500.0,0.00013698,2]
[334116097,1722784245461,-500.0,0.00013698,2]
[334116099,1722784245471,-500.0,0.00013698,2]
[334116101,1722784245482,-500.0,0.00013698,2]
[334116103,1722784245491,-500.0,0.00013698,2]
[334116105,1722784245500,-500.0,0.00013698,2]
[334116107,1722784245513,-520.24,0.00013698,2]
[334116109,1722784245523,-500.0,0.00013698,2]
[334116111,1722784245533,-500.0,0.00013698,2]
[334116113,1722784245542,-500.0,0.00013698,2]
[334116115,1722784245552,-500.0,0.00013698,2]
[334116117,1722784245562,-500.0,0.00013698,2]
[334116119,1722784245575,-500.0,0.00013698,2]
[334116121,1722784245585,-500.0,0.00013698,2]
[334116123,1722784245594,-500.0,0.00013698,2]
[334116125,1722784245604,-500.0,0.00013698,2]
[334116127,1722784245614,-193.6297432,0.00013698,2]
[334116129,1722784245624,-1509.93,0.00013698,2]
[334116132,1722784245646,-805.89,0.00013698,2]
[334116134,1722784245659,-506.72861638,0.00013698,2]
[334116137,1722784245671,-500.0,0.00013698,2]
[334116139,1722784245683,-269.00611085,0.00013698,2]
[334116141,1722784245693,-500.0,0.00013698,2]
[334116143,1722784245704,-181.63542714,0.00013698,2]
[334116147,1722784245724,-318.36457286,0.00013698,2]
[334116150,1722784245734,-500.0,0.00013698,2]
[334116153,1722784245743,-500.0,0.00013698,2]
[334116156,1722784245753,-500.0,0.00013698,2]
[334116159,1722784245766,-500.0,0.00013698,2]
[334116162,1722784245776,-500.0,0.00013698,2]
[334116165,1722784245786,-500.0,0.00013698,2]
[334116168,1722784245795,-476.38542714,0.00013698,2]
[334116172,1722784245808,-23.61457286,0.00013698,2]
[334116175,1722784245818,-500.0,0.00013698,2]
[334116178,1722784245828,-500.0,0.00013698,2]
[334116181,1722784245838,-503.67083284,0.00013698,2]